[Event "Titled Tuesday Blitz August 17 2021"]
[White "Martins, Carlos"]
[Black "Jaiswal, Rupesh"]
[WhiteFideId "2101688"]
[BlackFideId "12300870"]
[WhiteElo "2183"]
[BlackElo "2114"]
[Result "0-1"]
[Round "10"]
[TimeControl "180+1"]
[Date "2021.08.18"]
[WhiteClock "0:00:02"]
[BlackClock "0:00:05"]

1. e4 {[%clk 0:03:00]}  e6 {[%clk 0:03:00]} 2. d4 {[%clk 0:02:59]}  d5 {[%clk 0:03:00]} 3. Nc3 {[%clk 0:02:59]}  Bb4 {[%clk 0:03:00]} 4. e5 {[%clk 0:02:58]}  Ne7 {[%clk 0:02:59]} 5. Bd2 {[%clk 0:02:57]}  Bxc3 {[%clk 0:02:54]} 6. Bxc3 {[%clk 0:02:56]}  c5 {[%clk 0:02:53]} 7. Qg4 {[%clk 0:02:55]}  Nbc6 {[%clk 0:02:41]} 8. dxc5 {[%clk 0:02:51]}  d4 {[%clk 0:02:34]} 9. O-O-O {[%clk 0:02:49]}  Nf5 {[%clk 0:02:22]} 10. Bb5 {[%clk 0:02:34]}  h5 {[%clk 0:02:17]} 11. Qe4 {[%clk 0:02:24]}  Bd7 {[%clk 0:02:16]} 12. Bd2 {[%clk 0:02:11]}  Nxe5 {[%clk 0:02:11]} 13. Qxe5 {[%clk 0:02:01]}  Bxb5 {[%clk 0:02:10]} 14. Nf3 {[%clk 0:01:59]}  Bc6 {[%clk 0:02:01]} 15. Rhe1 {[%clk 0:01:48]}  Qd5 {[%clk 0:01:42]} 16. Qxd5 {[%clk 0:01:41]}  Bxd5 {[%clk 0:01:42]} 17. a3 {[%clk 0:01:37]}  Bxf3 {[%clk 0:01:41]} 18. gxf3 {[%clk 0:01:36]}  O-O-O {[%clk 0:01:35]} 19. b4 {[%clk 0:01:26]}  Kc7 {[%clk 0:01:28]} 20. h3 {[%clk 0:01:22]}  Kc6 {[%clk 0:01:27]} 21. Kb2 {[%clk 0:01:17]}  a5 {[%clk 0:01:20]} 22. Kb3 {[%clk 0:01:17]}  axb4 {[%clk 0:01:17]} 23. axb4 {[%clk 0:01:17]}  Kb5 {[%clk 0:01:18]} 24. Ra1 {[%clk 0:01:14]}  Ra8 {[%clk 0:01:16]} 25. Bf4 {[%clk 0:01:10]}  Rhd8 {[%clk 0:01:06]} 26. Rxa8 {[%clk 0:01:07]}  Rxa8 {[%clk 0:01:05]} 27. Re5 {[%clk 0:01:07]}  Ra1 {[%clk 0:00:59]} 28. c4+ {[%clk 0:00:50]}  dxc3 {[%clk 0:00:55]} 29. Kxc3 {[%clk 0:00:50]}  Ra3+ {[%clk 0:00:51]} 30. Kd2 {[%clk 0:00:42]}  Rxf3 {[%clk 0:00:48]} 31. Be3 {[%clk 0:00:42]}  Nxe3 {[%clk 0:00:46]} 32. fxe3 {[%clk 0:00:42]}  Kxb4 {[%clk 0:00:46]} 33. Rxh5 {[%clk 0:00:41]}  g6 {[%clk 0:00:41]} 34. Rh7 {[%clk 0:00:40]}  Kxc5 {[%clk 0:00:36]} 35. Ke2 {[%clk 0:00:40]}  Rf6 {[%clk 0:00:27]} 36. Rh4 {[%clk 0:00:36]}  b5 {[%clk 0:00:27]} 37. Rd4 {[%clk 0:00:36]}  Rf5 {[%clk 0:00:23]} 38. Rd7 {[%clk 0:00:35]}  b4 {[%clk 0:00:18]} 39. Rb7 {[%clk 0:00:33]}  Kc4 {[%clk 0:00:17]} 40. e4 {[%clk 0:00:30]}  Rf4 {[%clk 0:00:16]} 41. Ke3 {[%clk 0:00:29]}  Rf1 {[%clk 0:00:16]} 42. Rc7+ {[%clk 0:00:28]}  Kb3 {[%clk 0:00:16]} 43. h4 {[%clk 0:00:20]}  Kb2 {[%clk 0:00:13]} 44. Ke2 {[%clk 0:00:19]}  Rf6 {[%clk 0:00:12]} 45. Kd3 {[%clk 0:00:15]}  b3 {[%clk 0:00:12]} 46. Kc4 {[%clk 0:00:15]}  Rf4 {[%clk 0:00:12]} 47. Rb7 {[%clk 0:00:14]}  Rxe4+ {[%clk 0:00:12]} 48. Kd3 {[%clk 0:00:14]}  Rf4 {[%clk 0:00:12]} 49. Ke3 {[%clk 0:00:12]}  e5 {[%clk 0:00:12]} 50. Rb5 {[%clk 0:00:11]}  Rxh4 {[%clk 0:00:08]} 51. Rxe5 {[%clk 0:00:10]}  Rh3+ {[%clk 0:00:08]} 52. Kd2 {[%clk 0:00:10]}  f5 {[%clk 0:00:08]} 53. Re6 {[%clk 0:00:09]}  Rg3 {[%clk 0:00:08]} 54. Ra6 {[%clk 0:00:09]}  f4 {[%clk 0:00:07]} 55. Rf6 {[%clk 0:00:07]}  g5 {[%clk 0:00:07]} 56. Rf5 {[%clk 0:00:08]}  Rg2+ {[%clk 0:00:07]} 57. Kd1 {[%clk 0:00:07]}  Kb1 {[%clk 0:00:06]} 58. Rb5 {[%clk 0:00:06]}  b2 {[%clk 0:00:06]} 59. Rf5 {[%clk 0:00:04]}  Rg3 {[%clk 0:00:05]} 60. Kd2 {[%clk 0:00:04]}  Ka2 {[%clk 0:00:05]} 61. Ra5+ {[%clk 0:00:02]}  Ra3 {[%clk 0:00:05]} 0-1


[Site "https://www.chess.com"]

[Event "Titled Tuesday Blitz August 17 2021"]
[White "Matthiesen, Martin"]
[Black "Nguyen Hong Nhung"]
[WhiteFideId "1404067"]
[BlackFideId "12412201"]
[WhiteElo "2337"]
[BlackElo "1661"]
[Result "1-0"]
[Round "10"]
[TimeControl "180+1"]
[Date "2021.08.18"]
[WhiteClock "0:00:57"]
[BlackClock "0:00:17"]

1. d4 {[%clk 0:03:00]}  f5 {[%clk 0:02:59]} 2. g3 {[%clk 0:02:57]}  Nf6 {[%clk 0:02:59]} 3. Bg2 {[%clk 0:02:57]}  g6 {[%clk 0:02:58]} 4. Nf3 {[%clk 0:02:57]}  Bg7 {[%clk 0:02:59]} 5. O-O {[%clk 0:02:58]}  O-O {[%clk 0:02:59]} 6. c4 {[%clk 0:02:58]}  d6 {[%clk 0:03:00]} 7. Nc3 {[%clk 0:02:58]}  Qe8 {[%clk 0:02:59]} 8. b3 {[%clk 0:02:45]}  e5 {[%clk 0:02:52]} 9. dxe5 {[%clk 0:02:44]}  dxe5 {[%clk 0:02:53]} 10. Ba3 {[%clk 0:02:31]}  Rf7 {[%clk 0:02:53]} 11. e4 {[%clk 0:02:17]}  Nc6 {[%clk 0:02:36]} 12. Re1 {[%clk 0:02:12]}  f4 {[%clk 0:02:24]} 13. Ng5 {[%clk 0:02:04]}  Rd7 {[%clk 0:02:22]} 14. Nd5 {[%clk 0:02:03]}  Nd4 {[%clk 0:01:50]} 15. Nf3 {[%clk 0:01:58]}  c6 {[%clk 0:01:35]} 16. Nxd4 {[%clk 0:01:55]}  cxd5 {[%clk 0:01:31]} 17. exd5 {[%clk 0:01:55]}  Rf7 {[%clk 0:00:57]} 18. Nb5 {[%clk 0:01:51]}  Bf8 {[%clk 0:00:45]} 19. Bxf8 {[%clk 0:01:44]}  Qxf8 {[%clk 0:00:45]} 20. Rxe5 {[%clk 0:01:43]}  Ng4 {[%clk 0:00:46]} 21. Re6 {[%clk 0:01:31]}  f3 {[%clk 0:00:44]} 22. Bh3 {[%clk 0:01:21]}  Bxe6 {[%clk 0:00:30]} 23. dxe6 {[%clk 0:01:20]}  Re7 {[%clk 0:00:30]} 24. Bxg4 {[%clk 0:01:20]}  Rd8 {[%clk 0:00:30]} 25. Qxf3 {[%clk 0:01:17]}  Qxf3 {[%clk 0:00:31]} 26. Bxf3 {[%clk 0:01:17]}  Kg7 {[%clk 0:00:29]} 27. Bd5 {[%clk 0:01:17]}  a6 {[%clk 0:00:29]} 28. Nc3 {[%clk 0:01:16]}  b5 {[%clk 0:00:27]} 29. Re1 {[%clk 0:01:13]}  bxc4 {[%clk 0:00:25]} 30. bxc4 {[%clk 0:01:14]}  Kf6 {[%clk 0:00:24]} 31. f4 {[%clk 0:01:13]}  Rc7 {[%clk 0:00:21]} 32. g4 {[%clk 0:01:09]}  Ke7 {[%clk 0:00:21]} 33. Kf2 {[%clk 0:01:08]}  Rb8 {[%clk 0:00:20]} 34. Kf3 {[%clk 0:01:05]}  Rb2 {[%clk 0:00:20]} 35. Re2 {[%clk 0:01:01]}  Rb4 {[%clk 0:00:19]} 36. f5 {[%clk 0:01:00]}  gxf5 {[%clk 0:00:19]} 37. gxf5 {[%clk 0:00:59]}  Rb8 {[%clk 0:00:18]} 38. Kf4 {[%clk 0:00:59]}  Kf6 {[%clk 0:00:16]} 39. Ne4+ {[%clk 0:00:59]}  Ke7 {[%clk 0:00:16]} 40. Ke5 {[%clk 0:00:59]}  Kf8 {[%clk 0:00:17]} 41. f6 {[%clk 0:00:59]}  h5 {[%clk 0:00:16]} 42. Rg2 {[%clk 0:00:59]}  h4 {[%clk 0:00:15]} 43. e7+ {[%clk 0:00:58]}  Ke8 {[%clk 0:00:16]} 44. Rg8+ {[%clk 0:00:58]}  Kd7 {[%clk 0:00:17]} 45. Rxb8 {[%clk 0:00:58]}  h3 {[%clk 0:00:17]} 46. e8=Q# {[%clk 0:00:57]} 1-0


[Site "https://www.chess.com"]

[Event "Titled Tuesday Blitz August 17 2021"]
[White "Mirzoev, Azer"]
[Black "De Silva, L M S T"]
[WhiteFideId "13400304"]
[BlackFideId "9953698"]
[WhiteElo "2525"]
[BlackElo "1621"]
[Result "1-0"]
[Round "10"]
[TimeControl "180+1"]
[Date "2021.08.17"]
[WhiteClock "0:00:16"]
[BlackClock "0:00:07"]

1. d4 {[%clk 0:03:00]}  Nf6 {[%clk 0:02:59]} 2. c4 {[%clk 0:03:00]}  e6 {[%clk 0:03:00]} 3. Nc3 {[%clk 0:03:00]}  Bb4 {[%clk 0:02:59]} 4. e3 {[%clk 0:03:01]}  O-O {[%clk 0:02:59]} 5. Ne2 {[%clk 0:03:01]}  c6 {[%clk 0:03:00]} 6. a3 {[%clk 0:03:01]}  Ba5 {[%clk 0:03:00]} 7. b4 {[%clk 0:03:01]}  Bc7 {[%clk 0:03:01]} 8. Bb2 {[%clk 0:02:59]}  d5 {[%clk 0:03:01]} 9. Ng3 {[%clk 0:02:59]}  Nbd7 {[%clk 0:03:00]} 10. Rc1 {[%clk 0:02:56]}  e5 {[%clk 0:03:00]} 11. cxd5 {[%clk 0:02:56]}  exd4 {[%clk 0:02:58]} 12. Qxd4 {[%clk 0:02:54]}  Be5 {[%clk 0:02:57]} 13. Qd2 {[%clk 0:02:53]}  Nxd5 {[%clk 0:02:55]} 14. Nxd5 {[%clk 0:02:53]}  Bxb2 {[%clk 0:02:55]} 15. Qxb2 {[%clk 0:02:52]}  cxd5 {[%clk 0:02:56]} 16. Be2 {[%clk 0:02:51]}  Nf6 {[%clk 0:02:56]} 17. O-O {[%clk 0:02:51]}  h5 {[%clk 0:02:54]} 18. Nxh5 {[%clk 0:02:49]}  Nxh5 {[%clk 0:02:53]} 19. Bxh5 {[%clk 0:02:49]}  Be6 {[%clk 0:02:50]} 20. Bf3 {[%clk 0:02:50]}  a5 {[%clk 0:02:49]} 21. Rfd1 {[%clk 0:02:49]}  axb4 {[%clk 0:02:49]} 22. axb4 {[%clk 0:02:49]}  Qg5 {[%clk 0:02:44]} 23. g3 {[%clk 0:02:46]}  Ra4 {[%clk 0:02:40]} 24. h4 {[%clk 0:02:42]}  Qf5 {[%clk 0:02:40]} 25. Bg2 {[%clk 0:02:41]}  Rfa8 {[%clk 0:02:40]} 26. Rd2 {[%clk 0:02:35]}  Qg4 {[%clk 0:02:12]} 27. Qd4 {[%clk 0:02:25]}  Qg6 {[%clk 0:01:46]} 28. Qb6 {[%clk 0:02:09]}  Ra1 {[%clk 0:01:44]} 29. Rdd1 {[%clk 0:01:54]}  Qf6 {[%clk 0:00:52]} 30. Rxa1 {[%clk 0:01:06]}  Rxa1 {[%clk 0:00:52]} 31. Rxa1 {[%clk 0:01:06]}  Qxa1+ {[%clk 0:00:51]} 32. Kh2 {[%clk 0:01:06]}  Qb2 {[%clk 0:00:51]} 33. Qxb7 {[%clk 0:00:47]}  Qxf2 {[%clk 0:00:49]} 34. Qb8+ {[%clk 0:00:48]}  Kh7 {[%clk 0:00:49]} 35. Qf4 {[%clk 0:00:48]}  Qb2 {[%clk 0:00:41]} 36. Qd4 {[%clk 0:00:47]}  Qe2 {[%clk 0:00:36]} 37. e4 {[%clk 0:00:36]}  Qc4 {[%clk 0:00:19]} 38. Qc5 {[%clk 0:00:34]}  Qxc5 {[%clk 0:00:12]} 39. bxc5 {[%clk 0:00:34]}  d4 {[%clk 0:00:13]} 40. Kg1 {[%clk 0:00:28]}  Kg6 {[%clk 0:00:13]} 41. Kf2 {[%clk 0:00:23]}  Kf6 {[%clk 0:00:12]} 42. Ke2 {[%clk 0:00:22]}  Bc4+ {[%clk 0:00:11]} 43. Kd2 {[%clk 0:00:23]}  Ke5 {[%clk 0:00:10]} 44. Bf3 {[%clk 0:00:22]}  Be6 {[%clk 0:00:10]} 45. Kd3 {[%clk 0:00:21]}  g6 {[%clk 0:00:09]} 46. Be2 {[%clk 0:00:18]}  Bc8 {[%clk 0:00:06]} 47. Bf3 {[%clk 0:00:18]}  Ba6+ {[%clk 0:00:06]} 48. Kd2 {[%clk 0:00:18]}  Bb5 {[%clk 0:00:07]} 49. Be2 {[%clk 0:00:18]}  Bc6 {[%clk 0:00:07]} 50. Bc4 {[%clk 0:00:17]}  f6 {[%clk 0:00:06]} 51. Bd3 {[%clk 0:00:17]}  g5 {[%clk 0:00:07]} 52. h5 {[%clk 0:00:17]}  Ke6 {[%clk 0:00:04]} 53. h6 {[%clk 0:00:16]}  Kf7 {[%clk 0:00:05]} 54. Bc4+ {[%clk 0:00:16]}  Kg6 {[%clk 0:00:05]} 55. Bd5 {[%clk 0:00:16]}  Bd7 {[%clk 0:00:05]} 56. c6 {[%clk 0:00:16]}  Bc8 {[%clk 0:00:06]} 57. Kd3 {[%clk 0:00:17]}  Kxh6 {[%clk 0:00:07]} 58. Kxd4 {[%clk 0:00:17]}  g4 {[%clk 0:00:06]} 59. e5 {[%clk 0:00:16]}  Kg5 {[%clk 0:00:07]} 60. e6 {[%clk 0:00:16]}  Bxe6 {[%clk 0:00:07]} 61. Bxe6 {[%clk 0:00:16]} 1-0


[Site "https://www.chess.com"]

[Event "Titled Tuesday Blitz August 17 2021"]
[White "Moskalenko, Alexander"]
[Black "Tristan, Leonardo"]
[WhiteFideId "4155351"]
[BlackFideId "113816"]
[WhiteElo "2495"]
[BlackElo "2404"]
[Result "1/2-1/2"]
[Round "10"]
[TimeControl "180+1"]
[Date "2021.08.17"]
[WhiteClock "0:01:14"]
[BlackClock "0:00:12"]

1. c4 {[%clk 0:03:00]}  e6 {[%clk 0:03:00]} 2. Nc3 {[%clk 0:03:01]}  d5 {[%clk 0:03:00]} 3. d4 {[%clk 0:03:02]}  a6 {[%clk 0:03:00]} 4. cxd5 {[%clk 0:03:01]}  exd5 {[%clk 0:03:01]} 5. Nf3 {[%clk 0:03:01]}  Nf6 {[%clk 0:03:01]} 6. Bg5 {[%clk 0:03:00]}  Be6 {[%clk 0:03:02]} 7. Qb3 {[%clk 0:02:59]}  Ra7 {[%clk 0:03:01]} 8. e3 {[%clk 0:02:58]}  Nbd7 {[%clk 0:03:00]} 9. Bd3 {[%clk 0:02:56]}  Bd6 {[%clk 0:02:59]} 10. O-O {[%clk 0:02:56]}  c6 {[%clk 0:03:00]} 11. Bh4 {[%clk 0:02:56]}  h6 {[%clk 0:02:57]} 12. Bg3 {[%clk 0:02:57]}  Bxg3 {[%clk 0:02:55]} 13. hxg3 {[%clk 0:02:58]}  O-O {[%clk 0:02:56]} 14. Ne2 {[%clk 0:02:55]}  Qc7 {[%clk 0:02:51]} 15. Nf4 {[%clk 0:02:53]}  Re8 {[%clk 0:02:51]} 16. Nxe6 {[%clk 0:02:53]}  Rxe6 {[%clk 0:02:52]} 17. Rac1 {[%clk 0:02:53]}  Ra8 {[%clk 0:02:46]} 18. Qc2 {[%clk 0:02:53]}  Rae8 {[%clk 0:02:42]} 19. b4 {[%clk 0:02:54]}  Qd6 {[%clk 0:02:41]} 20. Qb2 {[%clk 0:02:54]}  Ne4 {[%clk 0:02:37]} 21. a4 {[%clk 0:02:53]}  b5 {[%clk 0:02:30]} 22. axb5 {[%clk 0:02:53]}  axb5 {[%clk 0:02:30]} 23. Bxe4 {[%clk 0:02:52]}  Rxe4 {[%clk 0:02:17]} 24. Qc3 {[%clk 0:02:51]}  R4e6 {[%clk 0:02:17]} 25. Ra1 {[%clk 0:02:46]}  Nb6 {[%clk 0:02:14]} 26. Ra6 {[%clk 0:02:45]}  Nc4 {[%clk 0:02:14]} 27. Rfa1 {[%clk 0:02:45]}  Rg6 {[%clk 0:02:04]} 28. Ne5 {[%clk 0:02:44]}  Nxe5 {[%clk 0:02:00]} 29. dxe5 {[%clk 0:02:45]}  Qxe5 {[%clk 0:02:01]} 30. Qxe5 {[%clk 0:02:44]}  Rxe5 {[%clk 0:02:01]} 31. Ra8+ {[%clk 0:02:38]}  Kh7 {[%clk 0:02:01]} 32. Rc8 {[%clk 0:02:25]}  Re4 {[%clk 0:01:54]} 33. Ra7 {[%clk 0:02:25]}  Rf6 {[%clk 0:01:51]} 34. Rac7 {[%clk 0:02:12]}  Rc4 {[%clk 0:01:49]} 35. f3 {[%clk 0:02:09]}  Rc1+ {[%clk 0:01:32]} 36. Kf2 {[%clk 0:02:09]}  Rc2+ {[%clk 0:01:32]} 37. Kg1 {[%clk 0:02:09]}  Kg6 {[%clk 0:01:18]} 38. g4 {[%clk 0:02:09]}  Rc3 {[%clk 0:01:13]} 39. Kf2 {[%clk 0:02:09]}  Rc2+ {[%clk 0:01:04]} 40. Kg3 {[%clk 0:02:09]}  Rc4 {[%clk 0:00:55]} 41. Kh3 {[%clk 0:01:56]}  Rc3 {[%clk 0:00:29]} 42. Kg3 {[%clk 0:01:53]}  Rxe3 {[%clk 0:00:25]} 43. Rxc6 {[%clk 0:01:53]}  Rb3 {[%clk 0:00:23]} 44. Rc5 {[%clk 0:01:47]}  Rxb4 {[%clk 0:00:23]} 45. Rxd5 {[%clk 0:01:47]}  Rb6 {[%clk 0:00:22]} 46. Rc7 {[%clk 0:01:40]}  Rb2 {[%clk 0:00:16]} 47. Rdd7 {[%clk 0:01:39]}  Rf6 {[%clk 0:00:14]} 48. Rb7 {[%clk 0:01:40]}  b4 {[%clk 0:00:14]} 49. Rd4 {[%clk 0:01:40]}  b3 {[%clk 0:00:13]} 50. Rd3 {[%clk 0:01:40]}  Re6 {[%clk 0:00:12]} 51. Rdxb3 {[%clk 0:01:38]}  Rc2 {[%clk 0:00:13]} 52. Rb2 {[%clk 0:01:32]}  Rxb2 {[%clk 0:00:12]} 53. Rxb2 {[%clk 0:01:33]}  f6 {[%clk 0:00:13]} 54. Rb7 {[%clk 0:01:33]}  Rc6 {[%clk 0:00:13]} 55. Rd7 {[%clk 0:01:32]}  Ra6 {[%clk 0:00:13]} 56. Kh4 {[%clk 0:01:32]}  Rb6 {[%clk 0:00:13]} 57. Rd8 {[%clk 0:01:30]}  Rb2 {[%clk 0:00:13]} 58. Kg3 {[%clk 0:01:30]}  Ra2 {[%clk 0:00:12]} 59. Rb8 {[%clk 0:01:30]}  Rc2 {[%clk 0:00:12]} 60. Rb5 {[%clk 0:01:29]}  Ra2 {[%clk 0:00:12]} 61. Rc5 {[%clk 0:01:29]}  Rb2 {[%clk 0:00:12]} 62. Kh3 {[%clk 0:01:29]}  Ra2 {[%clk 0:00:12]} 63. Rb5 {[%clk 0:01:30]}  Rc2 {[%clk 0:00:13]} 64. Rd5 {[%clk 0:01:30]}  Ra2 {[%clk 0:00:13]} 65. Rb5 {[%clk 0:01:30]}  Rc2 {[%clk 0:00:13]} 66. Rb1 {[%clk 0:01:30]}  Ra2 {[%clk 0:00:13]} 67. Rc1 {[%clk 0:01:31]}  Rb2 {[%clk 0:00:13]} 68. Ra1 {[%clk 0:01:31]}  Rc2 {[%clk 0:00:14]} 69. Ra6 {[%clk 0:01:30]}  Rb2 {[%clk 0:00:14]} 70. g3 {[%clk 0:01:29]}  Rb1 {[%clk 0:00:11]} 71. Ra7 {[%clk 0:01:28]}  Rh1+ {[%clk 0:00:11]} 72. Kg2 {[%clk 0:01:28]}  Rb1 {[%clk 0:00:11]} 73. f4 {[%clk 0:01:28]}  Rb2+ {[%clk 0:00:12]} 74. Kh3 {[%clk 0:01:29]}  Rb1 {[%clk 0:00:11]} 75. f5+ {[%clk 0:01:26]}  Kh7 {[%clk 0:00:12]} 76. Rc7 {[%clk 0:01:25]}  Rb2 {[%clk 0:00:11]} 77. Ra7 {[%clk 0:01:25]}  Rc2 {[%clk 0:00:11]} 78. Rb7 {[%clk 0:01:19]}  Rd2 {[%clk 0:00:11]} 79. Ra7 {[%clk 0:01:18]}  Rc2 {[%clk 0:00:11]} 80. Rd7 {[%clk 0:01:17]}  Rb2 {[%clk 0:00:11]} 81. Rd8 {[%clk 0:01:15]}  Rc2 {[%clk 0:00:11]} 82. Rb8 {[%clk 0:01:15]}  Ra2 {[%clk 0:00:11]} 83. Rc8 {[%clk 0:01:15]}  Rb2 {[%clk 0:00:11]} 84. Ra8 {[%clk 0:01:15]}  Rc2 {[%clk 0:00:12]} 85. Ra6 {[%clk 0:01:14]}  Rb2 {[%clk 0:00:12]} 86. Ra7 {[%clk 0:01:14]}  Rc2 {[%clk 0:00:12]} 1/2-1/2


[Site "https://www.chess.com"]

[Event "Titled Tuesday Blitz August 17 2021"]
[White "Nguyen, Thi Minh Oanh"]
[Black "Federzoni, Enzo"]
[WhiteFideId "12404080"]
[BlackFideId "2173301"]
[WhiteElo "1825"]
[BlackElo "1956"]
[Result "1-0"]
[Round "10"]
[TimeControl "180+1"]
[Date "2021.08.18"]
[WhiteClock "0:00:10"]
[BlackClock "0:00:02"]

1. d4 {[%clk 0:03:00]}  Nf6 {[%clk 0:02:56]} 2. Bg5 {[%clk 0:03:00]}  Ne4 {[%clk 0:02:53]} 3. Bf4 {[%clk 0:03:00]}  d5 {[%clk 0:02:53]} 4. e3 {[%clk 0:03:00]}  g5 {[%clk 0:02:45]} 5. Be5 {[%clk 0:03:00]}  f6 {[%clk 0:02:44]} 6. Qh5+ {[%clk 0:02:58]}  Kd7 {[%clk 0:02:43]} 7. Bg3 {[%clk 0:02:57]}  Nxg3 {[%clk 0:02:18]} 8. hxg3 {[%clk 0:02:56]}  c6 {[%clk 0:02:19]} 9. c4 {[%clk 0:02:53]}  Kc7 {[%clk 0:02:16]} 10. cxd5 {[%clk 0:02:53]}  Qxd5 {[%clk 0:02:15]} 11. Nc3 {[%clk 0:02:54]}  Qa5 {[%clk 0:02:11]} 12. Qf7 {[%clk 0:02:45]}  b5 {[%clk 0:02:06]} 13. Rxh7 {[%clk 0:02:42]}  Rxh7 {[%clk 0:01:49]} 14. Qxh7 {[%clk 0:02:43]}  b4 {[%clk 0:01:50]} 15. Nd1 {[%clk 0:02:35]}  Ba6 {[%clk 0:01:46]} 16. Bxa6 {[%clk 0:02:34]}  Nxa6 {[%clk 0:01:47]} 17. Ne2 {[%clk 0:02:33]}  b3+ {[%clk 0:01:45]} 18. Ndc3 {[%clk 0:02:32]}  Nb4 {[%clk 0:01:45]} 19. Kd2 {[%clk 0:01:57]}  bxa2 {[%clk 0:01:42]} 20. Qf7 {[%clk 0:01:42]}  Rb8 {[%clk 0:01:39]} 21. Kd1 {[%clk 0:01:33]}  Kb7 {[%clk 0:01:30]} 22. Nxa2 {[%clk 0:01:22]}  Ka8 {[%clk 0:01:29]} 23. Nec3 {[%clk 0:01:20]}  Nd3 {[%clk 0:01:27]} 24. b3 {[%clk 0:01:05]}  Nxf2+ {[%clk 0:01:17]} 25. Ke2 {[%clk 0:01:05]}  Ng4 {[%clk 0:01:18]} 26. Qe6 {[%clk 0:01:02]}  Qa6+ {[%clk 0:01:10]} 27. Kd2 {[%clk 0:00:52]}  Nf2 {[%clk 0:01:05]} 28. Qf5 {[%clk 0:00:45]}  Rxb3 {[%clk 0:01:01]} 29. Rb1 {[%clk 0:00:45]}  Rxb1 {[%clk 0:00:45]} 30. Qxb1 {[%clk 0:00:46]}  e6 {[%clk 0:00:38]} 31. Qg6 {[%clk 0:00:40]}  Qb6 {[%clk 0:00:32]} 32. Qe8+ {[%clk 0:00:24]}  Kb7 {[%clk 0:00:32]} 33. Qd7+ {[%clk 0:00:15]}  Qc7 {[%clk 0:00:27]} 34. Qxe6 {[%clk 0:00:14]}  Bd6 {[%clk 0:00:26]} 35. Qxf6 {[%clk 0:00:13]}  Bxg3 {[%clk 0:00:27]} 36. Qf5 {[%clk 0:00:12]}  Qc8 {[%clk 0:00:24]} 37. Qf7+ {[%clk 0:00:11]}  Qc7 {[%clk 0:00:20]} 38. Qf5 {[%clk 0:00:11]}  g4 {[%clk 0:00:18]} 39. Nb4 {[%clk 0:00:11]}  Bd6 {[%clk 0:00:16]} 40. Nd3 {[%clk 0:00:11]}  Nxd3 {[%clk 0:00:12]} 41. Kxd3 {[%clk 0:00:10]}  a5 {[%clk 0:00:12]} 42. Qxg4 {[%clk 0:00:10]}  Qb6 {[%clk 0:00:11]} 43. Qd1 {[%clk 0:00:11]}  Qb4 {[%clk 0:00:11]} 44. Qb1 {[%clk 0:00:10]}  Qxb1+ {[%clk 0:00:11]} 45. Nxb1 {[%clk 0:00:11]}  Bb4 {[%clk 0:00:10]} 46. Nc3 {[%clk 0:00:11]}  Kb6 {[%clk 0:00:08]} 47. g4 {[%clk 0:00:11]}  Be7 {[%clk 0:00:04]} 48. Kc4 {[%clk 0:00:11]}  Bg5 {[%clk 0:00:02]} 49. e4 {[%clk 0:00:10]} 1-0


[Site "https://www.chess.com"]